fUST/lending_fUST_20250520
["ID","MTS","AMOUNT","RATE_DAILY","PERIOD"]
[361719512,1747723851303,-858.66,0.00017534,2]
[361719513,1747723851313,-1356.57,0.00017534,2]
[361719514,1747723851322,-3513.69,0.00017534,2]
[361719515,1747723851332,-430.0,0.00017534,2]
[361719516,1747723851343,-430.0,0.00017534,2]
[361719517,1747723851353,-1048.66,0.00017534,2]
[361719518,1747723851362,-430.0,0.00017534,2]
[361719519,1747723851372,-1040.76,0.00017534,2]
[361719520,1747723851382,-5324.25,0.00017534,2]
[361719521,1747723851392,-435.84,0.00017534,2]
[361719522,1747723851402,-430.0,0.00017534,2]
[361719523,1747723851412,-1539.83,0.00017534,2]
[361719524,1747723851422,-430.0,0.00017534,2]
[361719525,1747723851432,-613.05,0.00017534,2]
[361719526,1747723851442,-651.71,0.00017534,2]
[361719527,1747723851452,-930.14,0.00017534,2]
[361719528,1747723851462,-430.0,0.00017534,2]
[361719529,1747723851473,-598.92,0.00017534,2]
[361719530,1747723851483,-430.0,0.00017534,2]
[361719531,1747723851493,-2078.85,0.00017534,2]
[361719532,1747723851503,-504.48,0.00017534,2]
[361719533,1747723851513,-1167.64,0.00017534,2]
[361719534,1747723851522,-430.0,0.00017534,2]
[361719535,1747723851531,-430.0,0.00017534,2]
[361719536,1747723851540,-1689.44,0.00017534,2]
[361719537,1747723851551,-430.0,0.00017534,2]
[361719538,1747723851560,-232.3195849,0.00017534,2]
[361719539,1747723851571,-2287.87,0.00017534,2]
[361719540,1747723851581,-430.0,0.00017534,2]
[361719541,1747723851591,-514.86,0.00017534,2]
[361719542,1747723851601,-547.54,0.00017534,2]
[361719543,1747723851611,-463.32,0.00017534,2]
[361719544,1747723851621,-1016.43,0.00017534,2]
[361719545,1747723851631,-764.69,0.00017534,2]
[361719546,1747723851641,-430.0,0.00017534,2]
[361719547,1747723851651,-830.36,0.00017534,2]
[361719548,1747723851661,-1078.82,0.00017534,2]
[361719549,1747723851678,-430.0,0.00017534,2]
[361719550,1747723851693,-811.22,0.00017534,2]
[361719551,1747723851703,-430.0,0.00017534,2]
[361719552,1747723851713,-430.0,0.00017534,2]
[361719553,1747723851723,-1368.03,0.00017534,2]
[361719554,1747723851735,-1103.51,0.00017534,2]
[361719555,1747723851745,-3044.86,0.00017534,2]
[361719556,1747723851755,-1504.99,0.00017534,2]
[361719557,1747723851766,-2065.01,0.00017534,2]
[361719558,1747723851777,-1487.12,0.00017534,2]
[361719559,1747723851787,-1014.74,0.00017534,2]
[361719560,1747723851798,-2175.3,0.00017534,2]
[361719561,1747723851808,-526.35,0.00017534,2]
[361719562,1747723851819,-7842.52,0.00017534,2]
[361719563,1747723851829,-1424.73,0.00017534,2]
[361719564,1747723851839,-913.17,0.00017534,2]
[361719565,1747723851849,-2097.63,0.00017534,2]
[361719566,1747723851860,-1558.57,0.00017534,2]
[361719567,1747723851870,-864.07,0.00017534,2]
[361719568,1747723851880,-950.4,0.00017534,2]
[361719569,1747723851890,-430.0,0.00017534,2]
[361719570,1747723851899,-430.0,0.00017534,2]
[361719571,1747723851910,-7721.78,0.00017534,2]
[361719572,1747723851920,-530.31,0.00017534,2]
[361719573,1747723851931,-430.0,0.00017534,2]
[361719574,1747723851943,-456.32,0.00017534,2]
[361719575,1747723851953,-3791.07,0.00017534,2]
[361719576,1747723851963,-929.62,0.00017534,2]
[361719577,1747723851973,-1307.16,0.00017534,2]
[361719578,1747723851984,-430.0,0.00017534,2]
[361719579,1747723851994,-1518.72,0.00017534,2]
[361719580,1747723852005,-1758.16,0.00017534,2]
[361719581,1747723852016,-1079.57,0.00017534,2]
[361719582,1747723852026,-1423.99,0.00017534,2]
[361719583,1747723852036,-430.0,0.00017534,2]
[361719584,1747723852046,-430.0,0.00017534,2]
[361719585,1747723852056,-538.89,0.00017534,2]
[361719586,1747723852067,-611.82,0.00017534,2]
[361719587,1747723852078,-430.0,0.00017534,2]
[361719588,1747723852088,-1687.09,0.00017534,2]
[361719589,1747723852098,-788.06,0.00017534,2]
[361719590,1747723852108,-430.0,0.00017534,2]
[361719591,1747723852118,-2323.68,0.00017534,2]
[361719592,1747723852129,-2853.34,0.00017534,2]
[361719593,1747723852139,-1935.67929474,0.00017534,2]
[361719594,1747723852859,-0.00235235,0.00016438,2]
[361719595,1747723853038,-5000.0,0.00016274,2]
[361719596,1747723853049,-960.58764765,0.00016438,2]
[361719597,1747723853058,-151.0,0.00016438,2]
[361719598,1747723853068,-151.0,0.00016438,2]
[361719599,1747723853077,-151.0,0.00016438,2]
[361719600,1747723853087,-246.132,0.00016644,2]
[361719601,1747723853098,-960.59,0.00016712,2]
[361719602,1747723853108,-151.0,0.00016712,2]
[361719603,1747723853118,-151.0,0.00016712,2]
[361719604,1747723853128,-151.0,0.00016712,2]
[361719605,1747723853138,-151.0,0.00016712,2]
[361719606,1747723853147,-207.967852,0.00016935,2]
[361719607,1747723853157,-960.59,0.00016986,2]
[361719608,1747723853166,-960.59,0.0001726,2]
[361719609,1747723853175,-1519.15070526,0.00017534,2]
[361719610,1747723853185,-430.0,0.00017534,2]
[361719611,1747723853195,-5847.34,0.00017534,2]
[361719612,1747723853204,-430.0,0.00017534,2]
[361719613,1747723853215,-430.0,0.00017534,2]
[361719614,1747723853226,-960.59,0.00017534,2]
[361719615,1747723853236,-500.0,0.00017582,2]
[361719616,1747723853246,-500.0,0.00017582,2]
[361719617,1747723853257,-500.0,0.00017582,2]
[361719618,1747723853267,-587.0,0.00017585,2]
[361719619,1747723853277,-153.0,0.00017589,2]
[361719620,1747723853287,-153.0,0.00017589,2]
[361719621,1747723853296,-153.0,0.00017589,2]
[361719622,1747723853331,-402.2211671,0.00017589,2]
[361719623,1747723853341,-500.0,0.00017595,2]
[361719624,1747723853351,-500.0,0.00017595,2]
[361719625,1747723853360,-500.0,0.00017616,2]
[361719626,1747723853370,-2695.38189613,0.00017693,2]
[361719627,1747723853379,-1000.0,0.0001774,2]
[361719628,1747723853389,-1000.0,0.00017759,2]
[361719629,1747723853399,-1000.0,0.00017759,2]
[361719630,1747723853408,-1000.0,0.00017759,2]
[361719631,1747723853417,-1000.0,0.00017785,2]
[361719632,1747723853427,-1000.0,0.00017785,2]
[361719633,1747723853436,-1000.0,0.00017788,2]
[361719634,1747723853446,-1000.0,0.00017788,2]
[361719635,1747723853455,-266.48160459,0.00017788,2]
[361719636,1747723853731,-733.51839541,0.00017788,2]
[361719637,1747723853740,-1000.0,0.00017788,2]
[361719638,1747723853749,-1000.0,0.00017788,2]
[361719639,1747723853760,-1000.0,0.00017788,2]
[361719640,1747723853770,-1000.0,0.00017788,2]
[361719641,1747723853779,-1000.0,0.00017788,2]
[361719642,1747723853789,-971.01424625,0.00017794,2]
[361719643,1747723853798,-1000.0,0.00017794,2]
[361719644,1747723853808,-1000.0,0.00017794,2]
[361719645,1747723853818,-1000.0,0.00017794,2]
[361719646,1747723853827,-1000.0,0.00017794,2]
[361719647,1747723853837,-178.555,0.000178,2]
[361719648,1747723853847,-22283.25471039,0.00017802,5]
[361719649,1747723853856,-160.0,0.00017807,2]
[361719650,1747723853866,-430.0,0.00017808,2]
[361719651,1747723853875,-522.55939658,0.00017808,2]
[361719652,1747723853886,-430.0,0.00017808,2]
[361719653,1747723853896,-671.11,0.00017808,2]
[361719654,1747723853906,-552.69,0.00017808,2]
[361719655,1747723853916,-522.33,0.00017808,2]
[361719656,1747723853926,-430.0,0.00017808,2]
[361719657,1747723853938,-774.678,0.00017808,2]
[361719658,1747723853953,-778.55,0.00017808,2]
[361719659,1747723853964,-430.0,0.00017808,2]
[361719660,1747723853974,-430.0,0.00017808,2]
[361719661,1747723853983,-430.0,0.00017808,2]
[361719662,1747723853993,-453.98,0.00017808,2]
[361719663,1747723854003,-430.0,0.00017808,2]
[361719664,1747723854012,-686.53,0.00017808,2]
[361719665,1747723854022,-430.0,0.00017808,2]
[361719666,1747723854032,-484.84,0.00017808,2]
[361719667,1747723854042,-430.0,0.00017808,2]
[361719668,1747723854052,-683.64,0.00017808,2]
[361719669,1747723854062,-430.0,0.00017808,2]
[361719670,1747723854071,-465.83,0.00017808,2]
[361719671,1747723854082,-1355.93,0.00017808,2]
[361719672,1747723854091,-679.09,0.00017808,2]
[361719673,1747723854103,-1257.94,0.00017808,2]
[361719674,1747723854112,-430.0,0.00017808,2]
[361719675,1747723854123,-430.0,0.00017808,2]
[361719676,1747723854134,-430.0,0.00017808,2]
[361719677,1747723854143,-430.0,0.00017808,2]
[361719678,1747723854153,-351.25266767,0.00017808,2]
[361719679,1747723854162,-430.0,0.00017808,2]
[361719680,1747723854173,-680.31,0.00017808,2]
[361719681,1747723854183,-1008.71,0.00017808,2]
[361719682,1747723854192,-619.76,0.00017808,2]
[361719683,1747723854202,-438.81,0.00017808,2]
[361719684,1747723854212,-612.09,0.00017808,2]
[361719685,1747723854222,-445.3,0.00017808,2]
[361719686,1747723854232,-430.0,0.00017808,2]
[361719687,1747723854243,-576.92,0.00017808,2]
[361719688,1747723854252,-514.34,0.00017808,2]
[361719689,1747723854262,-804.3,0.00017808,2]
[361719690,1747723854272,-506.14,0.00017808,2]
[361719691,1747723854282,-430.0,0.00017808,2]
[361719692,1747723854292,-793.61,0.00017808,2]
[361719693,1747723854303,-304.67018468,0.00017808,2]
[361719694,1747723854314,-691.98,0.00017808,2]
[361719695,1747723854324,-316.36229669,0.00017808,2]
[361719696,1747723854333,-430.0,0.00017808,2]
[361719697,1747723854343,-445.15,0.00017808,2]
[361719698,1747723854353,-430.0,0.00017808,2]
[361719699,1747723854364,-430.0,0.00017808,2]
[361719700,1747723854374,-482.21,0.00017808,2]
[361719701,1747723854384,-430.0,0.00017808,2]
[361719702,1747723854394,-465.09,0.00017808,2]
[361719703,1747723854404,-430.0,0.00017808,2]
[361719704,1747723854414,-430.0,0.00017808,2]
[361719705,1747723854425,-430.0,0.00017808,2]
[361719706,1747723854437,-509.8601466,0.00017808,2]
[361719707,1747723854448,-430.0,0.00017808,2]
[361719708,1747723854458,-430.0,0.00017808,2]
[361719709,1747723854467,-1168.87,0.00017808,2]
[361719710,1747723854477,-450.19,0.00017808,2]
[361719711,1747723854486,-544.4,0.00017808,2]
[361719712,1747723854498,-430.0,0.00017808,2]
[361719713,1747723854509,-430.0,0.00017808,2]
[361719714,1747723854518,-704.26,0.00017808,2]
[361719715,1747723854528,-521.49,0.00017808,2]
[361719716,1747723854537,-430.0,0.00017808,2]
[361719717,1747723854547,-1628.78,0.00017808,2]
[361719718,1747723854556,-430.0,0.00017808,2]
[361719719,1747723854566,-430.0,0.00017808,2]
[361719720,1747723854576,-430.0,0.00017808,2]
[361719721,1747723854585,-449.56,0.00017808,2]
[361719722,1747723854595,-572.84689829,0.00017808,2]
[361719723,1747723854605,-858.66,0.00017808,2]
[361719724,1747723854614,-1356.57,0.00017808,2]
[361719725,1747723854624,-3513.69,0.00017808,2]
[361719726,1747723854634,-430.0,0.00017808,2]
[361719727,1747723854643,-1048.66,0.00017808,2]
[361719728,1747723854653,-430.0,0.00017808,2]
[361719729,1747723854663,-1040.76,0.00017808,2]
[361719730,1747723854672,-430.0,0.00017808,2]
[361719731,1747723854682,-5324.25,0.00017808,2]
[361719732,1747723854691,-435.84,0.00017808,2]
[361719733,1747723854701,-430.0,0.00017808,2]
[361719734,1747723854710,-1539.83,0.00017808,2]
[361719735,1747723854719,-430.0,0.00017808,2]
[361719736,1747723854729,-613.05,0.00017808,2]
[361719737,1747723854738,-651.71,0.00017808,2]
[361719738,1747723854747,-930.14,0.00017808,2]
[361719739,1747723854757,-430.0,0.00017808,2]
[361719740,1747723854891,-430.0,0.00017808,2]
[361719741,1747723854901,-2078.85,0.00017808,2]
[361719742,1747723854911,-504.48,0.00017808,2]
[361719743,1747723854921,-598.92,0.00017808,2]
[361719744,1747723854930,-1167.64,0.00017808,2]
[361719745,1747723854943,-430.0,0.00017808,2]
[361719746,1747723854953,-430.0,0.00017808,2]
[361719747,1747723854963,-1689.44,0.00017808,2]
[361719748,1747723854973,-430.0,0.00017808,2]
[361719749,1747723854982,-2287.87,0.00017808,2]
[361719750,1747723854992,-430.0,0.00017808,2]
[361719751,1747723855001,-514.86,0.00017808,2]
[361719752,1747723855011,-547.54,0.00017808,2]
[361719753,1747723855021,-463.32,0.00017808,2]
[361719754,1747723855031,-1016.43,0.00017808,2]
[361719755,1747723855041,-764.69,0.00017808,2]
[361719756,1747723855050,-430.0,0.00017808,2]
[361719757,1747723855060,-830.36,0.00017808,2]
[361719758,1747723855070,-1078.82,0.00017808,2]
[361719759,1747723855080,-430.0,0.00017808,2]
[361719760,1747723855089,-811.22,0.00017808,2]
[361719761,1747723855099,-430.0,0.00017808,2]
[361719762,1747723855108,-430.0,0.00017808,2]
[361719763,1747723855118,-1368.03,0.00017808,2]
[361719764,1747723855129,-1103.51,0.00017808,2]
[361719765,1747723855138,-3044.86,0.00017808,2]
[361719766,1747723855149,-1504.99,0.00017808,2]
[361719767,1747723855159,-2065.01,0.00017808,2]
[361719768,1747723855168,-1487.12,0.00017808,2]
[361719769,1747723855178,-1014.74,0.00017808,2]
[361719770,1747723855187,-2175.3,0.00017808,2]
[361719771,1747723855197,-526.35,0.00017808,2]
[361719772,1747723855206,-7842.52,0.00017808,2]
[361719773,1747723855224,-1424.73,0.00017808,2]
[361719774,1747723855234,-913.17,0.00017808,2]
[361719775,1747723855243,-2097.63,0.00017808,2]
[361719776,1747723855252,-1558.57,0.00017808,2]
[361719777,1747723855262,-864.07,0.00017808,2]
[361719778,1747723855271,-950.4,0.00017808,2]
[361719779,1747723855281,-430.0,0.00017808,2]
[361719780,1747723855291,-430.0,0.00017808,2]
[361719781,1747723855300,-7721.78,0.00017808,2]
[361719782,1747723855309,-530.31,0.00017808,2]
[361719783,1747723855318,-430.0,0.00017808,2]
[361719784,1747723855328,-456.32,0.00017808,2]
[361719785,1747723855337,-3791.07,0.00017808,2]
[361719786,1747723855347,-929.62,0.00017808,2]
[361719787,1747723855356,-1307.16,0.00017808,2]
[361719788,1747723855366,-430.0,0.00017808,2]
[361719789,1747723855376,-1518.72,0.00017808,2]
[361719790,1747723855386,-1758.16,0.00017808,2]
[361719791,1747723855395,-1079.57,0.00017808,2]
[361719792,1747723855406,-1423.99,0.00017808,2]
[361719793,1747723855415,-313.82857628,0.00017808,2]
[361719794,1747723855425,-430.0,0.00017808,2]
[361719795,1747723855434,-538.89,0.00017808,2]
[361719796,1747723855445,-611.82,0.00017808,2]
[361719797,1747723855454,-440.52335262,0.00017808,2]
[361719798,1747723855464,-1687.09,0.00017808,2]
[361719799,1747723855474,-788.06,0.00017808,2]
[361719800,1747723855483,-430.0,0.00017808,2]
[361719801,1747723855493,-2323.68,0.00017808,2]
[361719802,1747723855502,-2853.34,0.00017808,2]
[361719803,1747723855512,-3454.83,0.00017808,2]
[361719804,1747723855522,-430.0,0.00017808,2]
[361719805,1747723855531,-5847.34,0.00017808,2]
[361719806,1747723855542,-430.0,0.00017808,2]
[361719807,1747723855551,-430.0,0.00017808,2]
[361719808,1747723855561,-960.59,0.00017808,2]
[361719809,1747723855571,-1000.0,0.0001781,2]
[361719810,1747723855580,-1000.0,0.0001781,2]
[361719811,1747723855589,-1000.0,0.00017915,2]
[361719812,1747723855599,-1126.92197628,0.00017915,2]
[361719813,1747723855608,-1000.0,0.00017915,2]
[361719814,1747723855618,-625.56290238,0.00017915,2]
[361719815,1747723855628,-1034.44048896,0.00017915,2]
[361719816,1747723855638,-1000.0,0.00017915,2]
[361719817,1747723855648,-11054.28836948,0.00017979,2]
[361719818,1747723855658,-751.16442377,0.0001798,2]
[361719819,1747723855667,-2695.38189613,0.00018072,2]
[361719820,1747723855677,-430.0,0.00018082,2]
[361719821,1747723855687,-430.0,0.00018082,2]
[361719822,1747723855696,-671.11,0.00018082,2]
[361719823,1747723855705,-552.69,0.00018082,2]
[361719824,1747723855716,-522.33,0.00018082,2]
[361719825,1747723855726,-430.0,0.00018082,2]
[361719826,1747723855735,-778.55,0.00018082,2]
[361719827,1747723855746,-430.0,0.00018082,2]
[361719828,1747723855755,-430.0,0.00018082,2]
[361719829,1747723855767,-430.0,0.00018082,2]
[361719830,1747723855777,-453.98,0.00018082,2]
[361719831,1747723855787,-430.0,0.00018082,2]
[361719832,1747723855798,-686.53,0.00018082,2]
[361719833,1747723855809,-430.0,0.00018082,2]
[361719834,1747723855819,-484.84,0.00018082,2]
[361719835,1747723855829,-430.0,0.00018082,2]
[361719836,1747723855838,-683.64,0.00018082,2]
[361719837,1747723855848,-430.0,0.00018082,2]
[361719838,1747723855858,-465.83,0.00018082,2]
[361719839,1747723855868,-1355.93,0.00018082,2]
[361719840,1747723855878,-679.09,0.00018082,2]
[361719841,1747723855887,-1257.94,0.00018082,2]
[361719842,1747723855896,-430.0,0.00018082,2]
[361719843,1747723855906,-430.0,0.00018082,2]
[361719844,1747723855916,-430.0,0.00018082,2]
[361719845,1747723855926,-430.0,0.00018082,2]
[361719846,1747723855939,-430.0,0.00018082,2]
[361719847,1747723855948,-680.31,0.00018082,2]
[361719848,1747723855958,-1008.71,0.00018082,2]
[361719849,1747723855968,-619.76,0.00018082,2]
[361719850,1747723855978,-438.81,0.00018082,2]
[361719851,1747723855989,-612.09,0.00018082,2]
[361719852,1747723855999,-445.3,0.00018082,2]
[361719853,1747723856009,-430.0,0.00018082,2]
[361719854,1747723856021,-576.92,0.00018082,2]
[361719855,1747723856032,-514.34,0.00018082,2]
[361719856,1747723856042,-804.3,0.00018082,2]
[361719857,1747723856051,-506.14,0.00018082,2]
[361719858,1747723856062,-430.0,0.00018082,2]
[361719859,1747723856072,-793.61,0.00018082,2]
[361719860,1747723856081,-691.98,0.00018082,2]
[361719861,1747723856091,-186.21019193,0.00018082,2]
[361719862,1747723856100,-445.15,0.00018082,2]
[361719863,1747723856110,-430.0,0.00018082,2]
[361719864,1747723856120,-430.0,0.00018082,2]
[361719865,1747723856136,-430.0,0.00018082,2]
[361719866,1747723856147,-482.21,0.00018082,2]
[361719867,1747723856157,-465.09,0.00018082,2]
[361719868,1747723856167,-430.0,0.00018082,2]
[361719869,1747723856177,-430.0,0.00018082,2]
[361719870,1747723856187,-430.0,0.00018082,2]
[361719871,1747723856197,-430.0,0.00018082,2]
[361719872,1747723856207,-430.0,0.00018082,2]
[361719873,1747723856216,-1168.87,0.00018082,2]
[361719874,1747723856226,-450.19,0.00018082,2]
[361719875,1747723856236,-544.4,0.00018082,2]
[361719876,1747723856246,-164.83197627,0.00018082,2]
[361719877,1747723856255,-430.0,0.00018082,2]
[361719878,1747723856265,-704.26,0.00018082,2]
[361719879,1747723856275,-521.49,0.00018082,2]
[361719880,1747723856284,-430.0,0.00018082,2]
[361719881,1747723856293,-1628.78,0.00018082,2]
[361719882,1747723856303,-430.0,0.00018082,2]
[361719883,1747723856312,-430.0,0.00018082,2]
[361719884,1747723856322,-430.0,0.00018082,2]
[361719885,1747723856332,-449.56,0.00018082,2]
[361719886,1747723856342,-858.66,0.00018082,2]
[361719887,1747723856351,-1356.57,0.00018082,2]
[361719888,1747723856361,-3513.69,0.00018082,2]
[361719889,1747723856371,-430.0,0.00018082,2]
[361719890,1747723856380,-1048.66,0.00018082,2]
[361719891,1747723856389,-430.0,0.00018082,2]
[361719892,1747723856399,-1040.76,0.00018082,2]
[361719893,1747723856410,-430.0,0.00018082,2]
[361719894,1747723856420,-5324.25,0.00018082,2]
[361719895,1747723856430,-435.84,0.00018082,2]
[361719896,1747723856441,-430.0,0.00018082,2]
[361719897,1747723856452,-1539.83,0.00018082,2]
[361719898,1747723856463,-430.0,0.00018082,2]
[361719899,1747723856474,-613.05,0.00018082,2]
[361719900,1747723856486,-651.71,0.00018082,2]
[361719901,1747723856496,-930.14,0.00018082,2]
[361719902,1747723856507,-430.0,0.00018082,2]
[361719903,1747723856518,-430.0,0.00018082,2]
[361719904,1747723856529,-2078.85,0.00018082,2]
[361719905,1747723856538,-504.48,0.00018082,2]
[361719906,1747723856548,-598.92,0.00018082,2]
[361719907,1747723856559,-1167.64,0.00018082,2]
[361719908,1747723856571,-430.0,0.00018082,2]
[361719909,1747723856582,-430.0,0.00018082,2]
[361719910,1747723856591,-1689.44,0.00018082,2]
[361719911,1747723856602,-430.0,0.00018082,2]
[361719912,1747723856612,-2287.87,0.00018082,2]
[361719913,1747723856622,-430.0,0.00018082,2]
[361719914,1747723856632,-514.86,0.00018082,2]
[361719915,1747723856641,-547.54,0.00018082,2]
[361719916,1747723856652,-463.32,0.00018082,2]
[361719917,1747723856662,-1016.43,0.00018082,2]
[361719918,1747723856673,-764.69,0.00018082,2]
[361719919,1747723856684,-512.50522782,0.00018082,2]
[361719920,1747723856693,-830.36,0.00018082,2]
[361719921,1747723856702,-1078.82,0.00018082,2]
[361719922,1747723856712,-430.0,0.00018082,2]
[361719923,1747723856721,-811.22,0.00018082,2]
[361719924,1747723856731,-430.0,0.00018082,2]
[361719925,1747723856741,-430.0,0.00018082,2]
[361719926,1747723856750,-1368.03,0.00018082,2]
[361719927,1747723856760,-1103.51,0.00018082,2]
[361719928,1747723856770,-3044.86,0.00018082,2]
[361719929,1747723856781,-1504.99,0.00018082,2]
[361719930,1747723856791,-1487.12,0.00018082,2]
[361719931,1747723856802,-2065.01,0.00018082,2]
[361719932,1747723856813,-1014.74,0.00018082,2]
[361719933,1747723856824,-2175.3,0.00018082,2]
[361719934,1747723856833,-526.35,0.00018082,2]
[361719935,1747723856843,-7842.52,0.00018082,2]
[361719936,1747723856852,-1424.73,0.00018082,2]
[361719937,1747723856862,-913.17,0.00018082,2]
[361719938,1747723856871,-2097.63,0.00018082,2]
[361719939,1747723856881,-1558.57,0.00018082,2]
[361719940,1747723856891,-864.07,0.00018082,2]
[361719941,1747723856900,-950.4,0.00018082,2]
[361719942,1747723856910,-430.0,0.00018082,2]
[361719943,1747723856919,-430.0,0.00018082,2]
[361719944,1747723856929,-7721.78,0.00018082,2]
[361719945,1747723856941,-530.31,0.00018082,2]
[361719946,1747723856952,-430.0,0.00018082,2]
[361719947,1747723856961,-456.32,0.00018082,2]
[361719948,1747723856972,-3791.07,0.00018082,2]
[361719949,1747723856982,-929.62,0.00018082,2]
[361719950,1747723856991,-1307.16,0.00018082,2]
[361719951,1747723857001,-430.0,0.00018082,2]
[361719952,1747723857010,-1518.72,0.00018082,2]
[361719953,1747723857020,-1758.16,0.00018082,2]
[361719954,1747723857030,-1079.57,0.00018082,2]
[361719955,1747723857040,-1423.99,0.00018082,2]
[361719956,1747723857050,-430.0,0.00018082,2]
[361719957,1747723857060,-538.89,0.00018082,2]
[361719958,1747723857071,-611.82,0.00018082,2]
[361719959,1747723857080,-1687.09,0.00018082,2]
[361719960,1747723857090,-788.06,0.00018082,2]
[361719961,1747723857099,-430.0,0.00018082,2]
[361719962,1747723857109,-2323.68,0.00018082,2]
[361719963,1747723857118,-2853.34,0.00018082,2]
[361719964,1747723857128,-3454.83,0.00018082,2]
[361719965,1747723857138,-430.0,0.00018082,2]
[361719966,1747723857264,-5847.34,0.00018082,2]
[361719967,1747723857275,-430.0,0.00018082,2]
[361719968,1747723857284,-430.0,0.00018082,2]
[361719969,1747723857294,-960.59,0.00018082,2]
[361719970,1747723857303,-1000.0,0.0001813,2]
[361719971,1747723857313,-1000.0,0.0001813,2]
[361719972,1747723857322,-1000.0,0.0001813,2]
[361719973,1747723857332,-1002.67402277,0.00018143,2]
[361719974,1747723857341,-1000.0,0.00018143,2]
[361719975,1747723857351,-323.58398378,0.00018158,2]
[361719976,1747723857360,-1000.0,0.00018164,2]
[361719977,1747723857370,-9787.00344768,0.00018256,2]
[361719978,1747723857379,-1500.0,0.00018288,2]
[361719979,1747723857389,-1500.0,0.00018307,2]
[361719980,1747723857400,-1500.0,0.00018307,2]
[361719981,1747723857409,-1500.0,0.00018307,2]
[361719982,1747723857419,-223.0315306,0.00018329,2]
[361719983,1747723857428,-1123.88696206,0.00018333,2]
[361719984,1747723857438,-1500.0,0.00018333,2]
[361719985,1747723857448,-1500.0,0.00018336,2]
[361719986,1747723857457,-1500.0,0.00018336,2]
[361719987,1747723857467,-1500.0,0.00018336,2]
[361719988,1747723857477,-508.34307691,0.00018336,2]
[361719989,1747723857486,-1503.4471593,0.00018336,2]
[361719990,1747723857495,-1500.0,0.00018336,2]
[361719991,1747723857505,-1500.0,0.00018336,2]
[361719992,1747723857515,-1500.0,0.00018336,2]
[361719993,1747723857524,-1500.0,0.00018342,2]
[361719994,1747723857533,-1500.0,0.00018342,2]
[361719995,1747723857543,-1500.0,0.00018342,2]
[361719996,1747723857553,-1500.0,0.00018342,2]
[361719997,1747723857563,-134110.46883883,0.0001835,2]
[361719998,1747723857573,-199.77257741,0.00018356,2]
[361719999,1747723857582,-430.0,0.00018356,2]
[361720000,1747723857592,-671.11,0.00018356,2]
[361720001,1747723857602,-552.69,0.00018356,2]
[361720002,1747723857611,-522.33,0.00018356,2]
[361720003,1747723857621,-430.0,0.00018356,2]
[361720004,1747723857630,-778.55,0.00018356,2]
[361720005,1747723857640,-430.0,0.00018356,2]
[361720006,1747723857649,-430.0,0.00018356,2]
[361720007,1747723857659,-430.0,0.00018356,2]
[361720008,1747723857669,-453.98,0.00018356,2]
[361720009,1747723857679,-430.0,0.00018356,2]
[361720010,1747723857689,-686.53,0.00018356,2]
[361720011,1747723857699,-430.0,0.00018356,2]